bitfinex/quotes_BTCUSD_20220304
["timestamp","ask_amount","ask_price","bid_price","bid_amount"]
[1646378838590,0.20578702,41427.0,41417.0,0.26382397]
[1646378839540,0.20415967,41425.0,41418.0,0.366895]
[1646378840035,0.20415967,41425.0,41415.0,0.366895]
[1646378840837,0.20415967,41425.0,41418.0,0.06210964]
[1646378844399,0.20415967,41425.0,41416.0,0.20811712]
[1646378844795,0.20415967,41425.0,41413.0,0.1]
[1646378844997,0.20415967,41425.0,41412.0,0.1961]
[1646378845000,0.060411,41423.0,41412.0,0.1961]
[1646378845196,0.20321653,41417.0,41412.0,0.1961]
[1646378845496,0.20321653,41417.0,41411.0,0.1137]
[1646378845797,0.20321653,41417.0,41411.0,0.366895]
[1646378845995,0.15942038,41419.0,41410.0,0.23854115]
[1646378846464,0.15942038,41419.0,41410.0,0.18378476]
[1646378846862,0.15942038,41419.0,41406.0,0.366895]
[1646378847064,0.25722516,41412.0,41406.0,0.366895]
[1646378847262,0.06042,41416.0,41410.0,0.02477361]
[1646378847463,0.06042,41416.0,41403.0,0.01207]
[1646378847764,0.17596067,41408.0,41402.0,0.18626691]
[1646378847964,0.1227,41418.0,41402.0,0.366895]
[1646378847965,0.120859,41414.0,41402.0,0.366895]
[1646378848163,0.120859,41414.0,41401.0,0.1215]
[1646378848365,0.27072382,41411.0,41401.0,0.1215]
[1646378848565,0.27072382,41411.0,41400.0,0.19968448]
[1646378848764,0.070096,41415.0,41400.0,0.19968448]
[1646378848965,0.070096,41415.0,41407.0,0.16229215]
[1646378849164,0.17053266,41413.0,41407.0,0.16229215]
[1646378849567,0.060423,41415.0,41407.0,0.16229215]
[1646378849764,0.0486,41417.0,41409.0,0.05402736]
[1646378850192,0.04107813,41417.0,41407.0,0.16229215]
[1646378850588,0.1721698,41413.0,41407.0,0.16229215]
[1646378850788,0.21588748,41417.0,41407.0,0.16229215]
[1646378851590,0.46350692,41417.0,41407.0,0.16229215]
[1646378851791,0.46350692,41417.0,41410.0,0.063336]
[1646378851990,0.04107813,41417.0,41410.0,0.063336]
[1646378852390,0.060415,41420.0,41410.0,0.063336]
[1646378852589,0.009672,41418.0,41410.0,0.063336]
[1646378852791,0.17697474,41415.0,41410.0,0.063336]
[1646378856343,0.17697474,41415.0,41407.0,0.16229215]
[1646378856744,0.25493605,41414.0,41407.0,0.16229215]
[1646378858195,0.16410829,41415.0,41407.0,0.16229215]
[1646378859594,0.16410829,41415.0,41412.0,0.06283855]
[1646378859996,0.21154038,41414.0,41412.0,0.06283855]
[1646378860393,0.366895,41418.0,41412.0,0.06283855]
[1646378860594,0.19561481,41419.0,41412.0,0.06283855]
[1646378860595,0.009672,41416.0,41412.0,0.06283855]
[1646378860794,0.366895,41418.0,41412.0,0.06283855]
[1646378861466,0.23175266,41413.0,41412.0,0.06283855]
[1646378861683,0.19561481,41419.0,41412.0,0.06283855]
[1646378862062,0.366895,41418.0,41412.0,0.06283855]
[1646378862764,0.3974801,41417.0,41412.0,0.06283855]
[1646378863163,0.366895,41416.0,41412.0,0.06283855]
[1646378863464,0.3974801,41417.0,41412.0,0.06283855]
[1646378863663,0.3974801,41417.0,41407.0,0.16229215]
[1646378865994,0.15875828,41417.0,41412.0,0.05603893]
[1646378866195,0.51690092,41422.0,41412.0,0.05603893]
[1646378866395,0.118,41422.0,41412.0,0.05603893]
[1646378866995,0.23130815,41421.0,41412.0,0.05603893]
[1646378867194,0.20530977,41419.0,41412.0,0.05603893]
[1646378870553,0.060416,41418.0,41408.0,0.2203]
[1646378870750,0.060416,41418.0,41409.0,0.366895]
[1646378870950,0.060416,41418.0,41408.0,0.102]
[1646378871151,0.060416,41418.0,41409.0,0.366895]
[1646378871552,0.060416,41418.0,41411.0,0.05476147]
[1646378871755,0.1710101,41412.0,41405.0,0.06067]
[1646378871953,0.1710101,41412.0,41405.0,0.01207]
[1646378872154,0.3,41411.0,41405.0,0.01207]
[1646378872355,0.3,41411.0,41405.0,0.01407]
[1646378872552,0.25548209,41408.0,41405.0,0.01407]
[1646378872801,0.3,41411.0,41405.0,0.0702849]
[1646378872996,0.1710101,41412.0,41405.0,0.0702849]
[1646378873997,0.18736956,41409.0,41405.0,0.01407]
[1646378874198,0.18736956,41409.0,41405.0,0.01207]
[1646378875098,0.28726268,41408.0,41405.0,0.01207]
[1646378875298,0.1710101,41412.0,41405.0,0.01207]
[1646378875501,0.2264401,41412.0,41397.0,0.1]
[1646378875703,0.060431,41409.0,41396.0,0.1224]
[1646378875899,0.3,41408.0,41396.0,0.1224]
[1646378876563,0.27608415,41404.0,41402.0,0.07118343]
[1646378876864,0.27608415,41404.0,41395.0,0.2]
[1646378876865,0.360439,41403.0,41395.0,0.2]
[1646378877061,0.360439,41403.0,41395.0,0.006]
[1646378877459,0.360439,41403.0,41389.0,0.1]
[1646378877660,0.20945153,41400.0,41392.0,0.15967149]
[1646378877864,0.360439,41403.0,41392.0,0.15967149]
[1646378878063,0.360439,41403.0,41396.0,0.06168932]
[1646378878263,0.366895,41402.0,41396.0,0.06168932]
[1646378878461,0.366895,41402.0,41392.0,0.15967149]
[1646378878462,0.2098563,41398.0,41388.0,0.37372242]
[1646378878662,0.2098563,41398.0,41389.0,0.366895]
[1646378878862,0.2703013,41398.0,41387.0,0.005]
[1646378879361,0.23576716,41398.0,41387.0,0.005]
[1646378879561,0.23576716,41398.0,41396.0,0.06690062]
[1646378879763,0.3,41400.0,41396.0,0.06690062]
[1646378880197,0.009676,41398.0,41396.0,0.06690062]
[1646378880401,0.009676,41398.0,41395.0,0.002]
[1646378880998,0.3,41400.0,41395.0,0.002]
[1646378881198,0.20852808,41401.0,41395.0,0.002]
[1646378881601,0.20852808,41401.0,41398.0,0.07186542]
[1646378881800,0.20852808,41401.0,41392.0,0.19770725]
[1646378882199,0.20852808,41401.0,41393.0,0.366895]
[1646378882400,0.20852808,41401.0,41392.0,0.19770725]
[1646378882902,0.20852808,41401.0,41395.0,0.05586555]
[1646378883941,0.20852808,41401.0,41392.0,0.19770725]
[1646378884242,0.15746016,41399.0,41392.0,0.19770725]
[1646378884442,0.060444,41400.0,41392.0,0.19870725]
[1646378885644,0.060444,41400.0,41394.0,0.07137779]
[1646378885847,0.060444,41400.0,41392.0,0.19770725]
[1646378886045,0.360444,41400.0,41392.0,0.19770725]
[1646378886646,0.16052212,41398.0,41392.0,0.19770725]
[1646378887046,0.360444,41400.0,41393.0,0.05834307]
[1646378887245,0.060444,41400.0,41393.0,0.05834307]
[1646378887705,0.360444,41400.0,41393.0,0.05834307]
[1646378888605,0.48133,41400.0,41393.0,0.05834307]
[1646378888803,0.48133,41400.0,41389.0,0.002]
[1646378888804,0.20710367,41398.0,41389.0,0.002]
[1646378889204,0.20710367,41398.0,41392.0,0.17424346]
[1646378889604,0.48133,41400.0,41392.0,0.17424346]
[1646378890204,0.48133,41400.0,41392.0,0.23348247]
[1646378890404,0.4808897,41400.0,41392.0,0.17424346]
[1646378890605,0.17643033,41396.0,41392.0,0.17424346]
[1646378891006,0.4808897,41400.0,41392.0,0.17424346]
[1646378892645,0.4808897,41400.0,41390.0,0.07397134]
[1646378892847,0.4808897,41400.0,41387.0,0.002]
[1646378893246,0.15966022,41399.0,41387.0,0.002]
[1646378893645,0.15966022,41399.0,41392.0,0.18900268]
[1646378893849,0.15966022,41399.0,41393.0,0.05602061]
[1646378894849,0.15966022,41399.0,41392.0,0.18900268]
[1646378896093,0.15966022,41399.0,41387.0,0.1]
[1646378896293,0.15966022,41399.0,41388.0,0.06506712]
[1646378897293,0.15966022,41399.0,41391.0,0.16300344]
[1646378897494,0.060442,41398.0,41391.0,0.16300344]
[1646378897995,0.060442,41398.0,41392.0,0.366895]
[1646378898194,0.060442,41398.0,41391.0,0.16300344]
[1646378899944,0.18798977,41397.0,41391.0,0.16300344]
[1646378900141,0.060442,41398.0,41391.0,0.16300344]
[1646378900342,0.060442,41398.0,41392.0,0.366895]
[1646378900543,0.3,41397.0,41387.0,0.1]
[1646378900744,0.3,41397.0,41386.0,0.127]
[1646378900745,0.06045,41396.0,41386.0,0.127]
[1646378901748,0.06045,41396.0,41390.0,0.06386366]
[1646378901944,0.366895,41395.0,41390.0,0.06386366]
[1646378902795,0.15820221,41394.0,41390.0,0.06386366]
[1646378902995,0.2819096,41391.0,41387.0,0.001]
[1646378903196,0.060451,41391.0,41387.0,0.001]
[1646378903598,0.060451,41391.0,41386.0,0.17728069]
[1646378903897,0.070128,41391.0,41386.0,0.17728069]
[1646378904097,0.060451,41391.0,41390.0,0.06740294]
[1646378905498,0.060451,41391.0,41386.0,0.17728069]
[1646378906654,0.060451,41391.0,41388.0,0.06476471]
[1646378907257,0.060451,41391.0,41389.0,0.366895]
[1646378907658,0.120904,41394.0,41389.0,0.366895]
[1646378907858,0.009677,41393.0,41390.0,0.666895]
[1646378908059,0.3067,41403.0,41390.0,0.666895]
[1646378908260,0.3067,41403.0,41390.0,0.3]
[1646378908559,0.2789482,41400.0,41390.0,0.3]
[1646378908757,0.3393802,41400.0,41391.0,0.366895]
[1646378908957,0.3998222,41400.0,41389.0,0.1]
[1646378909361,0.39970524,41400.0,41389.0,0.1]
[1646378909758,0.39970524,41400.0,41393.0,0.1904764]
[1646378910200,0.33868464,41398.0,41393.0,0.1904764]
[1646378910399,0.120884,41398.0,41393.0,0.1904764]
[1646378910602,0.3077,41403.0,41394.0,0.715495]
[1646378910603,0.001,41403.0,41394.0,0.715495]
[1646378910803,0.001,41403.0,41396.0,0.366895]
[1646378910999,0.001,41403.0,41398.0,0.366895]
[1646378911300,0.001,41403.0,41397.0,0.3486]
[1646378911301,0.001,41403.0,41400.0,0.366895]
[1646378911499,0.001,41403.0,41402.0,0.366895]
[1646378911700,0.001,41403.0,41402.0,0.415495]
[1646378912199,0.061424,41403.0,41402.0,0.415495]
[1646378912399,0.060424,41409.0,41402.0,0.715495]
[1646378912600,0.181272,41415.0,41402.0,0.901255]
[1646378912802,0.21538813,41416.0,41404.0,0.366895]
[1646378913000,0.21538813,41416.0,41406.0,0.366895]
[1646378913200,0.20687065,41420.0,41407.0,0.1442]
[1646378913400,0.29040669,41420.0,41408.0,0.3]
[1646378913603,0.29040669,41420.0,41409.0,0.0486]
[1646378913604,0.060404,41416.0,41409.0,0.0486]
[1646378913803,0.060404,41416.0,41401.0,0.37184093]
[1646378913804,0.01090416,41415.0,41408.0,0.0486]
[1646378914053,0.21563004,41420.0,41406.0,0.0486]
[1646378914054,0.120847,41414.0,41406.0,0.0486]
[1646378914252,0.21071613,41409.0,41406.0,0.0486]
[1646378914448,0.13446161,41414.0,41406.0,0.26751138]
[1646378914650,0.21024331,41413.0,41406.0,0.26751138]
[1646378914851,0.27065831,41413.0,41406.0,0.32979126]
[1646378915051,0.27065831,41413.0,41408.0,0.366895]
[1646378915350,0.27065831,41413.0,41406.0,0.32979126]
[1646378915650,0.19538256,41411.0,41407.0,0.366895]
[1646378915851,0.19538256,41411.0,41406.0,0.11087988]
[1646378916048,0.19538256,41411.0,41406.0,0.0486]
[1646378917253,0.20871884,41412.0,41406.0,0.0486]
[1646378918313,0.20871884,41412.0,41407.0,0.366895]
[1646378918614,0.27065831,41413.0,41407.0,0.366895]
[1646378919616,0.22917181,41412.0,41407.0,0.366895]
[1646378919818,0.27065831,41413.0,41407.0,0.366895]
[1646378920721,0.24916202,41411.0,41405.0,0.366895]
[1646378921119,0.44764944,41411.0,41405.0,0.366895]
[1646378921319,0.060421,41410.0,41405.0,0.366895]
[1646378922647,0.060421,41410.0,41404.0,0.3]
[1646378922648,0.060421,41410.0,41408.0,0.366895]
[1646378922845,0.060421,41410.0,41409.0,0.666895]
[1646378923646,0.120847,41414.0,41410.0,0.366895]
[1646378924046,0.060408,41415.0,41410.0,0.366895]
[1646378925700,0.060408,41415.0,41411.0,0.0486]
[1646378925901,0.060408,41415.0,41412.0,0.666895]
[1646378926103,0.060408,41415.0,41412.0,0.366895]
[1646378926402,0.060408,41415.0,41412.0,0.415495]
[1646378930647,0.070079,41415.0,41412.0,0.415495]
[1646378932451,0.060408,41415.0,41412.0,0.415495]
[1646378935204,0.060408,41415.0,41412.0,0.41538828]
[1646378935804,0.25079461,41415.0,41413.0,0.366895]
[1646378936003,0.15526062,41414.0,41413.0,0.366958]
[1646378936204,0.20486436,41414.0,41412.0,0.0486]
[1646378936452,0.32568836,41414.0,41409.0,0.0486]
[1646378936653,0.32568836,41414.0,41410.0,0.366958]
[1646378937256,0.120824,41414.0,41410.0,0.366958]
[1646378937656,0.120824,41414.0,41412.0,0.366958]
[1646378938257,0.120824,41414.0,41413.0,0.366958]
[1646378938455,0.120824,41414.0,41409.0,0.1486]
[1646378938656,0.120824,41414.0,41410.0,0.366958]
[1646378940499,0.060411,41414.0,41410.0,0.366958]
[1646378940699,0.060411,41414.0,41410.0,0.361958]
[1646378941795,0.060411,41414.0,41409.0,0.1]
[1646378941997,0.060411,41414.0,41410.0,0.366965]
[1646378942197,0.060411,41414.0,41408.0,0.0486]
[1646378942397,0.060411,41414.0,41409.0,0.366965]
[1646378942604,0.060421,41412.0,41403.0,0.003]
[1646378942999,0.060421,41412.0,41404.0,0.366965]
[1646378943202,0.060421,41412.0,41403.0,0.003]
[1646378943599,0.18481047,41406.0,41403.0,0.003]
[1646378943799,0.24523447,41406.0,41404.0,0.366965]
[1646378944851,0.060424,41406.0,41404.0,0.366965]
[1646378945451,0.3,41405.0,41399.0,0.002]
[1646378945651,0.3,41405.0,41400.0,0.366965]
[1646378945853,0.3,41405.0,41395.0,0.366965]
[1646378946052,0.060424,41406.0,41395.0,0.366965]
[1646378946250,0.060424,41406.0,41397.0,0.366965]
[1646378946451,0.060424,41406.0,41399.0,0.25356082]
[1646378946851,0.060424,41406.0,41400.0,0.366965]
[1646378947054,0.060424,41406.0,41401.0,0.366965]
[1646378947553,0.060424,41406.0,41400.0,0.366965]
[1646378948001,0.060424,41406.0,41399.0,0.25356082]
[1646378948200,0.060424,41406.0,41399.0,0.17942446]
[1646378949201,0.22739871,41402.0,41399.0,0.17942446]
[1646378949401,0.060429,41405.0,41400.0,0.366965]
[1646378950100,0.060424,41406.0,41400.0,0.366965]
[1646378950502,0.35760187,41406.0,41400.0,0.366965]
[1646378951102,0.35760187,41406.0,41401.0,0.366965]
[1646378951301,0.35760187,41406.0,41400.0,0.366965]
[1646378951550,0.34792887,41406.0,41400.0,0.366965]
[1646378952649,0.54975626,41406.0,41400.0,0.366965]
[1646378952849,0.54975626,41406.0,41399.0,0.23910432]
[1646378953051,0.54975626,41406.0,41395.0,0.1486]
[1646378953252,0.54975626,41406.0,41396.0,0.366965]
[1646378953554,0.060429,41405.0,41396.0,0.366965]
[1646378953749,0.060429,41405.0,41398.0,0.366965]
[1646378954151,0.060429,41405.0,41399.0,0.1]
[1646378954350,0.060429,41405.0,41397.0,0.31031405]
[1646378954351,0.060429,41405.0,41398.0,0.366965]
[1646378954751,0.40913924,41405.0,41399.0,0.1]
[1646378954951,0.060429,41405.0,41400.0,0.366965]
[1646378955194,0.060429,41405.0,41399.0,0.1]
[1646378955395,0.060429,41405.0,41400.0,0.366965]
[1646378956395,0.060429,41405.0,41397.0,0.21031405]
[1646378956695,0.060429,41405.0,41398.0,0.366965]
[1646378956895,0.060429,41405.0,41397.0,0.31031405]
[1646378957695,0.060429,41405.0,41398.0,0.466965]
[1646378957898,0.060429,41405.0,41399.0,0.366965]
[1646378958296,0.060429,41405.0,41398.0,0.1]
[1646378959150,0.060429,41405.0,41397.0,0.21031405]
[1646378959450,0.060429,41405.0,41398.0,0.366965]
[1646378959852,0.17815046,41404.0,41398.0,0.366965]
[1646378960251,0.17815046,41404.0,41397.0,0.21031405]
[1646378960451,0.060429,41405.0,41397.0,0.21031405]
[1646378960652,0.060429,41405.0,41399.0,0.366965]
[1646378961456,0.060424,41406.0,41399.0,0.366965]
[1646378961457,0.24915683,41406.0,41399.0,0.366965]
[1646378961953,0.20786209,41405.0,41399.0,0.366965]
[1646378962357,0.20786209,41405.0,41398.0,0.3]
[1646378962558,0.20786209,41405.0,41398.0,0.403]
[1646378963007,0.41948511,41405.0,41398.0,0.403]
[1646378963208,0.20786209,41405.0,41399.0,0.366965]
[1646378963408,0.060424,41406.0,41398.0,0.4]
[1646378963808,0.060424,41406.0,41398.0,0.39988769]
[1646378964013,0.060424,41406.0,41394.0,0.165]
[1646378964212,0.060424,41406.0,41394.0,0.1164]
[1646378964812,0.24728692,41401.0,41394.0,0.1164]
[1646378965009,0.060432,41401.0,41395.0,0.366965]
[1646378965211,0.060432,41401.0,41396.0,0.1]
[1646378965411,0.17370069,41399.0,41396.0,0.1]
[1646378965610,0.25218207,41401.0,41396.0,0.1]
[1646378965812,0.25218207,41401.0,41393.0,0.21962394]
[1646378966010,0.25218207,41401.0,41393.0,0.31962394]
[1646378966450,0.26902688,41400.0,41393.0,0.31962394]
[1646378966849,0.25218207,41401.0,41393.0,0.31962394]
[1646378967250,0.25218207,41401.0,41394.0,0.366965]
[1646378967251,0.060432,41401.0,41394.0,0.366965]
[1646378967452,0.16662369,41400.0,41394.0,0.366965]
[1646378967652,0.060432,41401.0,41395.0,0.1]
[1646378967852,0.2406021,41400.0,41396.0,0.366965]
[1646378968051,0.2406021,41400.0,41395.0,0.1]
[1646378968252,0.060432,41401.0,41395.0,0.1]
[1646378968851,0.27547446,41401.0,41393.0,0.31962394]
[1646378969052,0.060432,41401.0,41393.0,0.31962394]
[1646378969453,0.060432,41401.0,41394.0,0.366965]
[1646378969855,0.060432,41401.0,41395.0,0.1]
[1646378970053,0.060432,41401.0,41396.0,0.366965]
[1646378970503,0.060432,41401.0,41395.0,0.1]
[1646378970902,0.060432,41401.0,41394.0,0.366965]
[1646378971302,0.060432,41401.0,41395.0,0.1]
[1646378971503,0.060432,41401.0,41396.0,0.366965]
[1646378971906,0.30788695,41406.0,41396.0,0.366965]
[1646378972106,0.30788695,41406.0,41400.0,0.18287454]
[1646378972304,0.19238695,41406.0,41400.0,0.18287454]
[1646378972904,0.20350898,41403.0,41400.0,0.18287454]
[1646378973604,0.20350898,41403.0,41395.0,0.003]
[1646378973806,0.20350898,41403.0,41396.0,0.366965]
[1646378974645,0.20350898,41403.0,41397.0,0.18931726]
[1646378975246,0.06043,41402.0,41398.0,0.366965]
[1646378975446,0.06043,41402.0,41397.0,0.18931726]
[1646378978300,0.070105,41402.0,41397.0,0.18931726]
[1646378978503,0.070105,41402.0,41395.0,0.3]
[1646378978702,0.06043,41402.0,41396.0,0.366965]
[1646378979501,0.060423,41406.0,41396.0,0.366965]
[1646378979705,0.060423,41406.0,41398.0,0.366965]
[1646378979901,0.060423,41406.0,41399.0,0.3]
[1646378980101,0.060423,41406.0,41396.0,0.366965]
[1646378980500,0.060423,41406.0,41402.0,0.20726888]
[1646378981202,0.060423,41406.0,41402.0,0.25586888]
[1646378982252,0.070097,41406.0,41402.0,0.25586888]
[1646378982450,0.060423,41406.0,41402.0,0.25586888]
[1646378983052,0.060423,41406.0,41402.0,0.20726888]
[1646378983952,0.092401,41407.0,41402.0,0.20726888]
[1646378984953,0.27646889,41407.0,41402.0,0.20726888]
[1646378985200,0.060423,41406.0,41398.0,0.0486]
[1646378985600,0.060423,41406.0,41399.0,0.366965]
[1646378985801,0.060423,41406.0,41400.0,0.0486]
[1646378986001,0.366965,41405.0,41400.0,0.0486]
[1646378986201,0.1713809,41403.0,41394.0,0.33980986]
[1646378986601,0.1713809,41403.0,41395.0,0.1]
[1646378986602,0.15761639,41400.0,41395.0,0.1]
[1646378986801,0.060432,41401.0,41395.0,0.1]
[1646378987702,0.060432,41401.0,41394.0,0.22480986]
[1646378987901,0.26966552,41401.0,41394.0,0.22480986]
[1646378989763,0.26966552,41401.0,41394.0,0.22280986]
[1646378991067,0.060432,41401.0,41395.0,0.366965]
[1646378991665,0.1713809,41403.0,41395.0,0.366965]
[1646378991964,0.1713809,41403.0,41394.0,0.17420986]
[1646378992365,0.1713809,41403.0,41395.0,0.666965]
[1646378992798,0.206301,41407.0,41395.0,0.3]
[1646378993199,0.206301,41407.0,41395.0,0.4]
[1646378993400,0.1810277,41402.0,41395.0,0.4]
[1646378993701,0.1810277,41402.0,41395.0,0.1]
[1646378994500,0.1810277,41402.0,41394.0,0.17420986]
[1646378994701,0.1810277,41402.0,41395.0,0.366965]
[1646378994899,0.1810277,41402.0,41394.0,0.17420986]
[1646378995102,0.2414607,41402.0,41394.0,0.17420986]
[1646378996001,0.060433,41402.0,41394.0,0.17420986]
[1646378996202,0.060433,41402.0,41395.0,0.366965]
[1646378997050,0.19290502,41404.0,41395.0,0.366965]
[1646378997253,0.19290502,41404.0,41394.0,0.17720986]
[1646378997452,0.009674,41402.0,41395.0,0.366965]
[1646378997654,0.39058517,41404.0,41395.0,0.366965]
[1646378997853,0.39058517,41404.0,41395.0,0.3]
[1646378999254,0.19290502,41404.0,41403.0,0.0897]
[1646378999454,0.366965,41406.0,41403.0,0.0897]
[1646378999855,0.49094729,41407.0,41403.0,0.0897]
[1646379000201,0.366965,41406.0,41403.0,0.0897]
[1646379000401,0.19934833,41404.0,41394.0,0.29290986]
[1646379000603,0.060432,41402.0,41394.0,0.1187]
[1646379000803,0.120869,41402.0,41394.0,0.1187]
[1646379001003,0.120869,41402.0,41393.0,0.01207]
[1646379001802,0.120869,41402.0,41396.0,0.06721526]
[1646379002002,0.366965,41401.0,41396.0,0.06721526]
[1646379002206,0.120869,41402.0,41396.0,0.06721526]
[1646379002402,0.120869,41402.0,41393.0,0.01207]
[1646379002807,0.19271641,41399.0,41393.0,0.01207]
[1646379003004,0.060432,41402.0,41393.0,0.01207]
[1646379003405,0.060432,41402.0,41401.0,0.07005087]
[1646379003804,0.39854629,41406.0,41401.0,0.07005087]
[1646379004061,0.19718264,41405.0,41401.0,0.07005087]
[1646379005364,0.40822029,41406.0,41401.0,0.07005087]
[1646379005563,0.009674,41406.0,41402.0,0.666965]
[1646379006766,0.28190245,41406.0,41402.0,0.666965]
[1646379006964,0.60557562,41411.0,41402.0,0.666965]
[1646379007165,0.60557562,41411.0,41402.0,0.3]
[1646379007368,0.39854629,41411.0,41403.0,0.366965]
[1646379007566,0.00011064,41403.0,41402.0,0.666965]
[1646379007801,0.00011064,41403.0,41402.0,0.366965]
[1646379008006,0.00011064,41403.0,41402.0,0.666965]
[1646379009203,0.00011064,41403.0,41402.0,1.01797456]
[1646379009807,0.00011064,41403.0,41402.0,0.96667952]
[1646379010805,0.00011064,41403.0,41402.0,0.66667952]
[1646379011855,0.00011064,41403.0,41402.0,0.35100956]
[1646379013556,0.00011064,41403.0,41402.0,0.71802056]
[1646379013857,0.00011064,41403.0,41402.0,0.35100956]
[1646379014753,0.00011064,41403.0,41402.0,0.71802056]
[1646379014954,0.00011064,41403.0,41402.0,0.35100956]
[1646379015202,0.00011064,41403.0,41402.0,0.71802056]
[1646379015602,0.00011064,41403.0,41402.0,0.35100956]
[1646379015799,0.00011064,41403.0,41402.0,0.71802056]
[1646379016601,0.00011064,41403.0,41402.0,0.35100956]
[1646379017203,0.00011064,41403.0,41402.0,0.71802056]
[1646379017402,0.00011064,41403.0,41402.0,0.35100956]
[1646379017602,0.00011064,41403.0,41402.0,0.53871928]
[1646379017802,0.00011064,41403.0,41402.0,0.90573028]
[1646379019459,0.00011064,41403.0,41402.0,0.93050389]
[1646379019659,0.00011064,41403.0,41402.0,0.56349289]
[1646379020564,0.00011064,41403.0,41402.0,0.93050389]
[1646379020763,0.00011064,41403.0,41402.0,0.56349289]
[1646379021662,0.00011064,41403.0,41402.0,0.93050389]
[1646379022264,0.00011064,41403.0,41402.0,0.74279417]
[1646379022902,0.00011064,41403.0,41402.0,0.37578317]
[1646379028250,0.00011064,41403.0,41402.0,0.74279417]
[1646379029050,0.00011064,41403.0,41402.0,0.37578317]
[1646379031511,0.59874539,41403.0,41402.0,0.37578317]
[1646379031706,0.36712164,41403.0,41402.0,0.37578317]
[1646379031913,0.36712164,41403.0,41402.0,0.35100956]
[1646379032307,0.36712164,41403.0,41402.0,0.35090644]
[1646379032308,0.59905825,41403.0,41402.0,0.35090644]
[1646379032508,0.59905825,41403.0,41402.0,0.17550478]
[1646379032708,0.59905825,41403.0,41402.0,0.35090644]
[1646379032908,0.62400479,41403.0,41402.0,0.32635597]
[1646379033108,0.9,41402.0,41400.0,0.07]
[1646379033308,0.25814898,41401.0,41400.0,0.07]
[1646379033508,0.02494654,41401.0,41400.0,0.07]
[1646379035065,0.367011,41401.0,41400.0,0.07]
[1646379035866,0.60024199,41401.0,41400.0,0.07]
[1646379036067,0.60024199,41401.0,41385.0,0.001]
[1646379036068,0.427461,41399.0,41385.0,0.001]
[1646379036266,0.15614094,41391.0,41385.0,0.001]
[1646379036466,0.34914678,41393.0,41385.0,0.001]
[1646379036870,0.28013618,41390.0,41385.0,0.001]
[1646379037066,0.28013618,41390.0,41388.0,0.06351743]
[1646379037709,0.54982913,41394.0,41388.0,0.06351743]
[1646379038408,0.54982913,41394.0,41390.0,0.15095431]
[1646379038808,0.22065221,41391.0,41390.0,0.15095431]
[1646379039409,0.54982913,41394.0,41390.0,0.15095431]
[1646379039607,0.34914678,41394.0,41390.0,0.15095431]
[1646379040208,0.48119707,41400.0,41390.0,0.15095431]
[1646379040409,0.27902909,41393.0,41390.0,0.15095431]
[1646379040608,0.20491393,41392.0,41390.0,0.15095431]
[1646379041009,0.26536693,41392.0,41390.0,0.15095431]
[1646379042056,0.060453,41392.0,41390.0,0.15095431]
[1646379042853,0.367011,41391.0,41390.0,0.15095431]
[1646379043456,0.94412485,41391.0,41390.0,0.15095431]
[1646379043658,0.57711385,41391.0,41384.0,0.001]
[1646379043855,0.57711385,41391.0,41380.0,0.001]
[1646379043856,0.367011,41390.0,41380.0,0.001]
[1646379044059,0.21672641,41381.0,41380.0,0.001]
[1646379044356,0.442441,41381.0,41380.0,0.001]
[1646379044755,0.742441,41381.0,41380.0,0.001]
[1646379045406,0.442441,41381.0,41380.0,0.001]
[1646379046007,0.07543,41381.0,41380.0,0.001]
[1646379046207,0.26064364,41387.0,41380.0,0.001]
[1646379046409,0.1205,41387.0,41380.0,0.001]
[1646379046612,0.1165,41387.0,41380.0,0.001]
[1646379048108,0.367011,41386.0,41380.0,0.001]
[1646379048309,0.1165,41387.0,41380.0,0.001]
[1646379048310,0.367011,41385.0,41380.0,0.001]
[1646379048509,0.4165,41387.0,41380.0,0.001]
[1646379048707,0.367011,41386.0,41380.0,0.001]
[1646379048953,0.4165,41387.0,41380.0,0.001]
[1646379049553,0.35158234,41387.0,41380.0,0.001]
[1646379051257,0.060462,41386.0,41380.0,0.001]
[1646379051658,0.35158234,41387.0,41380.0,0.001]
[1646379055108,0.65158234,41387.0,41380.0,0.001]
[1646379055508,0.35158234,41387.0,41380.0,0.001]
[1646379055708,0.65158234,41387.0,41380.0,0.001]
[1646379056457,0.35158234,41387.0,41380.0,0.001]
[1646379060309,0.65158234,41387.0,41380.0,0.001]
[1646379062010,0.367011,41386.0,41380.0,0.001]
[1646379062509,0.37739874,41386.0,41380.0,0.001]
[1646379062908,0.120952,41385.0,41380.0,0.001]
[1646379063109,0.727478,41384.0,41380.0,0.001]
[1646379063312,0.360467,41384.0,41380.0,0.001]
[1646379063513,0.3,41384.0,41380.0,0.001]
[1646379063711,0.009679,41385.0,41380.0,0.001]
[1646379063959,0.35158234,41387.0,41380.0,0.001]
[1646379064360,0.367011,41386.0,41380.0,0.001]
[1646379064560,0.1165,41387.0,41380.0,0.001]
[1646379065162,0.1165,41387.0,41382.0,0.367011]
[1646379065364,0.34873747,41393.0,41380.0,0.001]
[1646379065365,7.632e-05,41382.0,41380.0,0.001]
[1646379065561,7.632e-05,41382.0,41381.0,0.367011]
[1646379065761,7.632e-05,41382.0,41381.0,0.06247668]
[1646379066162,7.632e-05,41382.0,41381.0,0.42948768]
[1646379068023,7.632e-05,41382.0,41381.0,0.367011]
[1646379068923,7.632e-05,41382.0,41380.0,0.001]
[1646379069722,7.632e-05,41382.0,41381.0,0.367011]
[1646379069923,7.632e-05,41382.0,41380.0,0.001]
[1646379070222,7.632e-05,41382.0,41381.0,0.367011]
[1646379070422,9.749e-05,41381.0,41380.0,0.368011]
[1646379071464,9.749e-05,41381.0,41380.0,0.668011]
[1646379072662,9.749e-05,41381.0,41380.0,0.368011]
[1646379073366,9.749e-05,41381.0,41380.0,0.468011]
[1646379074663,0.34873747,41390.0,41380.0,0.101]
[1646379074866,0.34873747,41390.0,41381.0,0.1]
[1646379075313,0.34873747,41389.0,41381.0,0.1]